Cogmind - Beta 10.2 @@@ ROGUE MODE // 2021.02.04 @ 00:18:59 Player: David Result: Destroyed by G-47 Trooper with Particle Gun Performance ------------- Evolutions (0) 0 Regions Visited (2) 400 Robots Destroyed (17) 85 Value Destroyed (321) 321 Prototype IDs (0) 0 Alien Tech Used (0) 0 Bonus (0) 0 TOTAL SCORE: 806 Bonus ------- None Cogmind --------- Core Integrity 0/250 Matter 300/300 Energy 85/100 System Corruption 0% Temperature Cool (64) Movement Walking (120) Location -10/Mines Parts ------- > --- POWER (1) -------- (None) > --- PROPULSION (2) --- Aluminum Leg Aluminum Leg > --- UTILITY (2) ------ Small Storage Unit Light Armor Plating > --- WEAPON (2) ------- EM Pulse Gun Light Assault Rifle > --- INVENTORY (6) ---- Aluminum Leg Shock Trap Shock Trap Shock Trap Shock Trap Shock Trap Peak State ------------ > --- POWER ------------ Ion Engine > --- PROPULSION ------- Aluminum Leg Aluminum Leg > --- UTILITY ---------- Small Storage Unit Light Armor Plating > --- WEAPON ----------- EM Pulse Gun Light Assault Rifle > --- INVENTORY -------- Wheel [Rating: 7] Favorites ----------- Power Ion Engine Engine Ion Engine Propulsion Aluminum Leg Leg Aluminum Leg Wheel Wheel Utility Small Storage Unit Storage Small Storage Unit Protection Light Armor Plating Weapon Light Assault Rifle Energy Gun EM Pulse Gun Ballistic Gun Light Assault Rifle Build | -11 -10 -10 ------- Run | Scr Mat Min Slots Evolved . | . . . Power . | . . . Propulsion . | . . . Utility . | . . . Weapon . | . . . Parts Attached 14 | 6 6 2 Power 1 | 1 . . Engine 1 | 1 . . Core . | . . . Reactor . | . . . Propulsion 5 | 2 2 1 Treads . | . . . Leg 3 | . 2 1 Wheel 2 | 2 . . Hover . | . . . Flight . | . . . Utility 2 | 1 1 . Device . | . . . Storage 1 | 1 . . Processor . | . . . Hackware . | . . . Protection 1 | . 1 . Artifact . | . . . Weapon 6 | 2 3 1 Energy Gun 1 | . 1 . Energy Cannon . | . . . Ballistic Gun 5 | 2 2 1 Ballistic Cannon . | . . . Launcher . | . . . Special Weapon . | . . . Impact Weapon . | . . . Slashing Weapon . | . . . Piercing Weapon . | . . . Special Melee Weapon . | . . . Unidentified Prototypes . | . . . Parts Lost 4 | . 3 1 Power 1 | . . 1 Propulsion 1 | . 1 . Utility . | . . . Weapon 2 | . 2 . Highest Loss Streak 2 | . 2 1 Average Slot Usage (%) 91 | . 89 93 Engine 10 | . 14 7 Leg 22 | . 15 28 Wheel 5 | . 10 . Storage 14 | . 14 14 Protection 10 | . 6 14 Energy Gun 10 | . 6 14 Ballistic Gun 16 | . 20 14 Naked Turns . | . . . Heaviest Build 15 | 11 15 15 Greatest Support 20 | 16 20 20 Greatest Overweight (x) 3 | . 3 . Average Overweight (x) . | . . . Largest Inventory Capacity 6 | 6 6 6 Average Capacity 5 | 5 6 6 Most Carried 6 | 4 3 6 Average Carried 2 | 1 1 4 Final Capacity 6 | 6 6 6 Final Carried 6 | 2 2 6 Class Distribution -------------------- 100% | Mutant Dominant Class ---------------- Mutant | -10/Materials Mutant | -10/Mines Resources | -11 -10 -10 ----------- Run | Scr Mat Min Matter Collected 423 | 195 159 69 Remotely . | . . . Salvage Created 450 | . 234 216 Parts 40 | . 24 16 Haulers Intercepted 1 | . 1 . Recyclers Shooed . | . . . Parts Field Recycled . | . . . Retrieved Matter . | . . . Parts Self-Destructed . | . . . Prevented . | . . . Kills | -11 -10 -10 ------- Run | Scr Mat Min Combat Hostiles Destroyed 14 | . 8 6 Guns 14 | . 8 6 Classes Destroyed 5 | . 4 1 Tunneler 1 | . . 1 Hauler 1 | . 1 . Watcher 1 | . 1 . Swarmer 9 | . 6 3 Grunt 5 | . 2 3 Best Kill Streak 3 | . 3 3 Combat Bots Only 3 | . 3 3 Max Kills in Single Turn 1 | . 1 1 Gunslinging . | . . . Exploded . | . . . Melee . | . . . Uniques/NPCs Destroyed . | . . . Combat | -11 -10 -10 -------- Run | Scr Mat Min Damage Taken 937 | . 578 359 Core 254 | . 161 93 Absorbed by Shields . | . . . Core Remaining (%) 100 | 100 . . Volleys Fired 78 | . 50 28 Largest 2 | . 2 2 Hottest 60 | . 60 60 Shots Fired 138 | . 82 56 Gun 138 | . 82 56 Cannon . | . . . Launcher . | . . . Special . | . . . Kinetic 106 | . 78 28 Thermal . | . . . Explosive . | . . . Electromagnetic 32 | . 4 28 Robot Hit Streak 14 | . 14 10 Robot Miss Streak 5 | . 4 5 Penetration Max . | . . . Secondary Targets . | . . . Shots Hit Robots 85 | . 49 36 Core Hits 35 | . 21 14 Critical Hits 1 | . . 1 Critical Kills . | . . . Critical Parts Destroyed 1 | . . 1 Melee Attacks . | . . . Impact . | . . . Slashing . | . . . Piercing . | . . . Sneak Attacks . | . . . Combat Hostiles . | . . . Follow-up Attacks . | . . . Damage Inflicted 866 | . 406 460 Guns 862 | . 406 456 Cannons . | . . . Explosions . | . . . Melee . | . . . Ramming 4 | . . 4 Kinetic 527 | . 360 167 Thermal . | . . . Explosive . | . . . Electromagnetic 335 | . 46 289 Impact . | . . . Slashing . | . . . Piercing . | . . . Highest Corruption . | . . . Average Corruption . | . . . Corruption Purged . | . . . Overload Shots . | . . . Overflow Damage . | . . . Projectiles . | . . . Explosions . | . . . Melee . | . . . Knockbacks . | . . . Impact . | . . . Kinetic . | . . . Secondary . | . . . Self-Inflicted Damage 1 | . . 1 Shots . | . . . Rammed 3 | . . 3 Targets Rammed 3 | . . 3 Kicked . | . . . Crushed . | . . . Highest Temperature 184 | . 44 184 Average Temperature 52 | . 16 67 Received Heat Transfer 240 | . 99 141 Siege Activations . | . . . Robots Corrupted . | . . . Combat Hostiles . | . . . Parts Fried . | . . . Impact Corruptions . | . . . Robots Melted . | . . . Combat Hostiles . | . . . Parts Melted 1 | . . 1 Heat Transferred . | . . . Parts Sabotaged . | . . . Parts Stolen . | . . . Parts Stripped . | . . . Power Chain Reactions . | . . . Missiles Intercepted . | . . . Alert | -11 -10 -10 ------- Run | Scr Mat Min Peak Influence 238 | . 238 145 Initial 20 | . . 20 Average 90 | . 114 76 Maximum Alert Level 1 | . 1 . Low Security (%) 85 | 100 69 100 Level 1 14 | . 30 . Level 2 . | . . . Level 3 . | . . . Level 4 . | . . . Level 5 . | . . . High Security . | . . . Max Security . | . . . Squads Dispatched 1 | . 1 . Investigation . | . . . Extermination . | . . . Reinforcement 1 | . 1 . Assault . | . . . Garrison . | . . . Intercept . | . . . Construction Impeded . | . . . Haulers Reinforced . | . . . Stealth | -11 -10 -10 --------- Run | Scr Mat Min Distress Signals . | . . . Communications Jammed . | . . . Distress Signals . | . . . Times Spotted 19 | . 12 7 Peak Tracking Total 4 | . 4 3 Tactical Retreats 1 | . 1 . Traps | -11 -10 -10 ------- Run | Scr Mat Min Traps Triggered . | . . . Indirectly . | . . . Trap Hack Attempts . | . . . Triggered . | . . . Disarmed . | . . . Reprogrammed . | . . . Reused . | . . . Traps Extracted . | . . . Installed . | . . . Triggered . | . . . Machines | -11 -10 -10 ---------- Run | Scr Mat Min Machines Disabled 1 | . . 1 Max in Single Turn 1 | . . 1 Machines Sabotaged . | . . . Garrisons Compromised . | . . . Overloaded Fab Kills . | . . . Fab Network Shutdowns . | . . . Hacking | -11 -10 -10 --------- Run | Scr Mat Min Machines Accessed 3 | . 3 . Terminals 2 | . 2 . Fabricators . | . . . Repair Stations . | . . . Recycling Units 1 | . 1 . Scanalyzers . | . . . Garrison Access . | . . . Total Hacks 5 | . 5 . Successful 3 | . 3 . Failed 2 | . 2 . Catastrophic 1 | . 1 . Database Lockouts . | . . . Manual . | . . . Terminals 4 | . 4 . Fabricators . | . . . Repair Stations . | . . . Recycling Units 1 | . 1 . Scanalyzers . | . . . Garrison Access . | . . . Terminal Hacks 2 | . 2 . Emergency Access Points 1 | . 1 . Locate Traps 1 | . 1 . Fabricator Hacks . | . . . Repair Station Hacks . | . . . Recycling Unit Hacks 1 | . 1 . Retrieve Components 1 | . 1 . Scanalyzer . | . . . Garrison Access Hacks . | . . . Unauthorized Hacks . | . . . Terminals . | . . . Fabricators . | . . . Repair Stations . | . . . Recycling Units . | . . . Scanalyzers . | . . . Garrison Access . | . . . Data Cores Recovered . | . . . Used . | . . . Hacking Detections 1 | . 1 . Full Trace Events . | . . . Feedback Events . | . . . Feedback Blocked . | . . . Robot Schematics Acquired . | . . . Robots Built . | . . . Matter . | . . . Time . | . . . Total Robot Build Rating . | . . . Part Schematics Acquired . | . . . Parts Built . | . . . Matter . | . . . Time . | . . . Total Part Build Rating . | . . . Parts Repaired . | . . . Time . | . . . Parts Recycled . | . . . Recycled Matter . | . . . Retrieved Matter . | . . . Retrieved Components 9 | . 9 . Parts Scanalyzed . | . . . Part Schematics Acquired . | . . . Parts Damaged . | . . . Bothacking | -11 -10 -10 ------------ Run | Scr Mat Min Used RIF Installer . | . . . Robots Hacked . | . . . Non-combat . | . . . Combat . | . . . Robot Hacks Applied . | . . . Relay Couplers Released . | . . . Robots Rewired . | . . . Allies Hacked . | . . . Hacks Repelled . | . . . Allies | -11 -10 -10 -------- Run | Scr Mat Min Total Allies . | . . . Largest Group . | . . . Highest-Rated Group . | . . . Highest-Rated Ally . | . . . Total Orders . | . . . Ally Attacks . | . . . Total Damage . | . . . Kills . | . . . Allies Corrupted . | . . . Allies Melted . | . . . Intel | -11 -10 -10 ------- Run | Scr Mat Min Robot Analysis Total . | . . . Derelict Logs Recovered . | . . . Drone Launches . | . . . Drone Recoveries . | . . . Exploration | -11 -10 -10 ------------- Run | Scr Mat Min Turns Passed 996 | 53 462 481 Spaces Moved 642 | 44 281 317 Core 18 | 10 8 . Treads . | . . . Legs 489 | . 172 317 Wheels 135 | 34 101 . Hover . | . . . Flight . | . . . Fastest Speed 50 | 50 100 120 Average Speed 115 | 88 115 120 Slowest Speed 200 | 100 200 120 Overloaded Moves . | . . . Propulsion Burnouts . | . . . Robots Hopped . | . . . Cave-ins Triggered . | . . . Exploration Rate (%) 35 | 4 47 55 Regions Visited 2 Branch Regions 1 Pre-discovered Areas 1 | . . 1 Known Exits Taken . | . . . Unknown Exits Taken 2 | 1 1 . Scrap Searched 1 | . . 1 Spaces Dug . | . . . Terrain Destroyed . | . . . Melee . | . . . Projectile . | . . . AOE . | . . . Terrain Rammed . | . . . Walls Destroyed . | . . . Machines Disabled . | . . . Actions | -11 -10 -10 --------- Run | Scr Mat Min Total 777 | 57 352 368 Wait 19 | . 12 7 Move 640 | 43 280 317 Hop . | . . . Pick Up 19 | 8 4 7 Fast Attach . | . . . Attach 10 | 6 4 . Detach . | . . . Swap 4 | . 2 2 Drop 4 | . . 4 Fire 78 | . 50 28 Melee . | . . . Ram . | . . . Kick 3 | . . 3 Crush . | . . . Escape Stasis . | . . . Rewire . | . . . Trap . | . . . Miscellaneous . | . . . Route ------- -11/Scrapyard -10/Materials (discovered 3 exits: [*Mat] / [*Min x2]) -10/Mines (discovered 1 exit: [*Mat]) History --------- Turn | Location | Event 8 | -11/Scrapyard | Discovered new exit (range 16) 54 | -11/Scrapyard | Entered Materials 133 | -10/Materials | Discovered new exit (range 11) 273 | -10/Materials | Core integrity fell below 50% 310 | -10/Materials | Discovered new exit (range 12) 310 | -10/Materials | Discovered new exit (range 12) 318 | -10/Materials | Build established: Mutant 516 | -10/Materials | Entered Mines 527 | -10/Mines | Met a Derelict bent on vengeance 664 | -10/Mines | Learned location of Storage (-7) 704 | -10/Mines | Found a hidden stash of uninstalled traps 788 | -10/Mines | Core integrity fell below 20% 929 | -10/Mines | Discovered new exit (range 7) 997 | -10/Mines | Destroyed by G-47 Trooper with Particle Gun Last Messages --------------- 00803_ Acquired 10 matter. 00806_ R-06 Scavenger collects Flight Unit. 00886_ Slammed into K-01 Serf. 00929_ EXIT=FOUND 00934_ Slammed into K-01 Serf. 00934_ Destabilizing: System interference. 00934_ Lgt. Assault Rifle temporarily disabled. 00934_ EM Pulse Gun temporarily disabled. 00977_ T-07 Excavator destroyed. 00982_ Acquired 1 matter. 00983_ K-01 Serf collects debris. 00984_ Acquired 1 matter. 00986_ K-01 Serf collects debris. 00987_ Acquired 1 matter. 00990_ K-01 Serf collects debris. 00993_ Acquired 1 matter. 00993_ K-01 Serf collects debris. 00995_ G-34 Mercenary destroyed. 00996_ Acquired 1 matter. 00996_ K-01 Serf collects debris. Map ----- +----------------------------------------------------+ | | | | | | | | | | | ??????????????????????????????????? | | ??????????????????????????????????? | | ??????????????????????????????????? | | ??????????????????????????????????? | | ??????????????????????????????????? | | ??????????????????????????????????? | | ??????????????????????????????????? | | ??????????????????????????????????? | | ?????#????????????????????????????? | | ????## ???????????????????????????? | | ???## ???????????????????????????? | | ???# ???????????????????????????? | | ???# ??????????????????????????? | | ???# ! ??????????????????????????? | | ????! #?????????????????????????? | | ????# *####?????????????????????? | | ?????# =%k ##????????????????????? | | ??????# g #????????????????????? | | ???????# #????????????????????? | | ????????# =| ?????????????????????? | | ?????????#@#??????????????????????? | | ?????????#!#??????????????????????? | | ?????????# #??????????????????????? | | ?????????# #??????????????????????? | | ?????????# ###????????????????????? | | ?????????# #?????????????#??????? | | ?????????### #???????????? #??????? | | ???????????# #??????????? #??????? | | ???????????# #####??????# ##?????? | | ???????????# #????## #?????? | | ???????????##### #??## ##????? | | ???????????????# ### #????? | | ???????????????# #?????? | | ???????????????#### ### #???????? | | ?????????????????# ##???????????? | | ?????????????????# #????????????? | | ?????????????????# #??????###### | | ?????????????????# ##?????? ? | | ??????########???# ####????# #?? | | ??????# #???# ##???# #?? | | ??????# """" #???## ##??# #?? | | ??????# """" #????## ##?# ### | | ??????# """" #?????## ###%# | | ??????# #??????## | | ??????##### ##???????## | +----------------------------------------------------+ Best States ------------- Heat Dissipation 25 Energy Generation 10 Energy Capacity 250 Matter Stores 300 Matter Capacity 300 Sight Range 16 Terrain Scan Density 10 Armor Coverage 150 Evasion (%) 50 Item Schematics ----------------- None Robot Schematics ------------------ None Fabricated ------------ Nothing Alien Tech Used ----------------- None Achievements -------------- None Challenges ------------ None Game ------ Seed CouplerInsulationWell Manual? 0 Play Time 00:14:34 Cumulative 62.1 hours Start 2021.02.04 @ 00:07:47 End 2021.02.04 @ 00:18:59 Sessions 1 Manual Loads 0 Difficulty Rogue Special Mode None Game No. 85 Rogue 85 Adventurer 0 Explorer 0 Win Type - Total 0 Types 0/0/0/0/0/0/0/0/0 Lore% 36 Gallery% 46 Achievement% 25 Wizard Run 0 Options --------- ASCII 0 Keyboard 0 Movement Mouse Keybinds 0 Fullscreen 1 Font 18/Smallcaps Map View 76x50 Tactical HUD 1 Map Filters NONE Filters NONE Steam 1 RUN: 9b43dc0e-5050-474b-ba55-8fdbf163cc8a